[Event "Indian FIDE World Cup Qualifer 2021"]
[White "Nitin, S."]
[Black "Aditya, Mittal"]
[WhiteFideId "5018277"]
[BlackFideId "35042025"]
[WhiteElo "2381"]
[BlackElo "2438"]
[Result "1-0"]
[Round "04"]
[TimeControl "5400+30"]
[Date "Thu May 27 2021"]
[WhiteClock "0:12:07"]
[BlackClock "0:07:12"]

1. e4 {[%clk 0:15:06]}  c5 {[%clk 0:15:07]} 2. b3 {[%clk 0:15:11]}  Nc6 {[%clk 0:14:45]} 3. Bb2 {[%clk 0:15:17]}  d6 {[%clk 0:14:54]} 4. Bb5 {[%clk 0:15:19]}  Bd7 {[%clk 0:15:00]} 5. f4 {[%clk 0:15:26]}  a6 {[%clk 0:13:28]} 6. Bxc6 {[%clk 0:15:31]}  Bxc6 {[%clk 0:13:37]} 7. Nc3 {[%clk 0:15:36]}  Nf6 {[%clk 0:13:23]} 8. Qe2 {[%clk 0:15:42]}  e6 {[%clk 0:12:46]} 9. Nf3 {[%clk 0:15:47]}  b5 {[%clk 0:11:00]} 10. e5 {[%clk 0:15:07]}  Nd7 {[%clk 0:08:09]} 11. exd6 {[%clk 0:13:45]}  Bxd6 {[%clk 0:08:16]} 12. Ne4 {[%clk 0:12:27]}  Bxf4 {[%clk 0:08:08]} 13. Bxg7 {[%clk 0:12:13]}  Rg8 {[%clk 0:08:16]} 14. Bb2 {[%clk 0:12:07]}  Qe7 {[%clk 0:07:12]} 1-0

[Event "Women's Speed Chess Championship - Qualifier 2 2021"]
[White "Osmak, Iulija"]
[Black "Eswaran, Ashritha"]
[WhiteFideId "14101602"]
[BlackFideId "2080788"]
[WhiteElo "2149"]
[BlackElo "2478"]
[Result "0-1"]
[Round "13"]
[TimeControl "180+1"]
[Date "Sat May 29 2021"]
[WhiteClock "0:00:03"]
[BlackClock "0:00:14"]

1. e4 {[%clk 0:03:00]}  c5 {[%clk 0:02:57]} 2. b3 {[%clk 0:03:00]}  Nc6 {[%clk 0:02:54]} 3. Bb2 {[%clk 0:03:01]}  e6 {[%clk 0:02:52]} 4. f4 {[%clk 0:02:56]}  d5 {[%clk 0:02:52]} 5. e5 {[%clk 0:02:56]}  d4 {[%clk 0:02:52]} 6. g3 {[%clk 0:02:55]}  h5 {[%clk 0:02:48]} 7. Nf3 {[%clk 0:02:52]}  h4 {[%clk 0:02:45]} 8. Bg2 {[%clk 0:02:46]}  hxg3 {[%clk 0:02:44]} 9. hxg3 {[%clk 0:02:45]}  Rxh1+ {[%clk 0:02:42]} 10. Bxh1 {[%clk 0:02:46]}  Nh6 {[%clk 0:02:37]} 11. Qe2 {[%clk 0:02:38]}  Bd7 {[%clk 0:02:37]} 12. Na3 {[%clk 0:02:37]}  a6 {[%clk 0:02:30]} 13. O-O-O {[%clk 0:02:31]}  b5 {[%clk 0:02:25]} 14. c3 {[%clk 0:02:29]}  Qa5 {[%clk 0:02:19]} 15. Kb1 {[%clk 0:02:25]}  c4 {[%clk 0:02:12]} 16. b4 {[%clk 0:02:21]}  d3 {[%clk 0:02:01]} 17. bxa5 {[%clk 0:02:16]}  dxe2 {[%clk 0:02:01]} 18. Re1 {[%clk 0:02:17]}  Nf5 {[%clk 0:01:53]} 19. g4 {[%clk 0:02:08]}  Ng3 {[%clk 0:01:49]} 20. Bg2 {[%clk 0:02:05]}  Bc5 {[%clk 0:01:48]} 21. Nd4 {[%clk 0:02:03]}  b4 {[%clk 0:01:41]} 22. Nac2 {[%clk 0:01:47]}  b3 {[%clk 0:01:38]} 23. axb3 {[%clk 0:01:46]}  cxb3 {[%clk 0:01:36]} 24. Nxb3 {[%clk 0:01:32]}  Bf2 {[%clk 0:01:30]} 25. Rc1 {[%clk 0:01:32]}  Rb8 {[%clk 0:01:28]} 26. Ka2 {[%clk 0:01:20]}  Rb5 {[%clk 0:01:19]} 27. Bf3 {[%clk 0:01:09]}  Nxa5 {[%clk 0:01:16]} 28. Nxa5 {[%clk 0:01:06]}  Rxa5+ {[%clk 0:01:17]} 29. Ba3 {[%clk 0:01:03]}  Ba4 {[%clk 0:01:12]} 30. Ne1 {[%clk 0:01:02]}  Bd1 {[%clk 0:01:05]} 31. Nd3 {[%clk 0:01:00]}  Bb6 {[%clk 0:00:53]} 32. Rxd1 {[%clk 0:00:43]}  exd1=Q {[%clk 0:00:52]} 33. Bxd1 {[%clk 0:00:44]}  Rd5 {[%clk 0:00:47]} 34. Bc2 {[%clk 0:00:43]}  Ne2 {[%clk 0:00:43]} 35. Bd6 {[%clk 0:00:33]}  Rxd3 {[%clk 0:00:37]} 36. Bxd3 {[%clk 0:00:32]}  Nc1+ {[%clk 0:00:38]} 37. Ka3 {[%clk 0:00:28]}  Nxd3 {[%clk 0:00:38]} 38. f5 {[%clk 0:00:27]}  exf5 {[%clk 0:00:34]} 39. gxf5 {[%clk 0:00:28]}  g6 {[%clk 0:00:32]} 40. fxg6 {[%clk 0:00:22]}  fxg6 {[%clk 0:00:33]} 41. Kb3 {[%clk 0:00:22]}  a5 {[%clk 0:00:30]} 42. Kc4 {[%clk 0:00:17]}  Nf4 {[%clk 0:00:30]} 43. Kb5 {[%clk 0:00:17]}  Bf2 {[%clk 0:00:26]} 44. Kxa5 {[%clk 0:00:16]}  Be1 {[%clk 0:00:24]} 45. Kb5 {[%clk 0:00:12]}  Bxd2 {[%clk 0:00:24]} 46. c4 {[%clk 0:00:13]}  g5 {[%clk 0:00:20]} 47. c5 {[%clk 0:00:12]}  Ne6 {[%clk 0:00:18]} 48. c6 {[%clk 0:00:12]}  Kd8 {[%clk 0:00:17]} 49. Kb6 {[%clk 0:00:08]}  g4 {[%clk 0:00:15]} 50. Kb7 {[%clk 0:00:07]}  g3 {[%clk 0:00:14]} 51. c7+ {[%clk 0:00:08]}  Nxc7 {[%clk 0:00:14]} 52. Bxc7+ {[%clk 0:00:09]}  Ke7 {[%clk 0:00:14]} 53. Bb6 {[%clk 0:00:08]}  Be1 {[%clk 0:00:14]} 54. Bc5+ {[%clk 0:00:05]}  Ke6 {[%clk 0:00:14]} 55. Kc6 {[%clk 0:00:03]}  Bf2 {[%clk 0:00:14]} 0-1